bitfinex-derivatives/quotes_SOLF0:USTF0_20251018
["timestamp","ask_amount","ask_price","bid_price","bid_amount"]
[1760777284155,7.4306,186.26,186.16,2.71]
[1760777284349,13.39038127,186.25,186.16,2.71]
[1760777284549,9.0941491,186.24,186.16,2.71]
[1760777284751,4.91219171,186.23,186.16,2.71]
[1760777284955,2.6,186.26,186.19,2.71]
[1760777285151,9.09678125,186.25,186.19,2.71]
[1760777285357,4.91353907,186.24,186.19,2.71]
[1760777285664,2.6,186.26,186.19,7.5422]
[1760777285862,9.09739045,186.25,186.19,7.5422]
[1760777286063,11.72739045,186.24,186.2,2.83]
[1760777286264,4.91384232,186.23,186.2,2.83]
[1760777286465,2.63,186.24,186.2,2.83]
[1760777286765,4.91723428,186.23,186.2,2.83]
[1760777287064,2.63,186.24,186.2,2.83]
[1760777287363,4.9196383,186.23,186.2,2.83]
[1760777287559,4.9196383,186.22,186.2,2.83]
[1760777287763,2.63,186.24,186.2,2.83]
[1760777287965,4.91816321,186.23,186.2,2.83]
[1760777288166,4.91972654,186.22,186.2,2.83]
[1760777288465,2.63,186.24,186.2,2.83]
[1760777288667,4.91969874,186.23,186.21,2.83]
[1760777288856,2.63,186.24,186.21,2.83]
[1760777289063,4.91969872,186.23,186.21,2.83]
[1760777289362,2.63,186.24,186.21,2.83]
[1760777289567,4.9214139,186.23,186.21,2.83]
[1760777289867,7.63340013,186.28,186.19,2.83]
[1760777290065,7.63340013,186.28,186.12,2.85484067]
[1760777290066,13.4067245,186.27,186.22,2.83]
[1760777290272,4.9217545,186.26,186.25,2.83]
[1760777290467,4.9217545,186.26,186.24,2.85484067]
[1760777290468,2.63,186.31,186.27,2.83]
[1760777290664,13.4072074,186.3,186.27,2.83]
[1760777290864,9.10118736,186.29,186.27,2.83]
[1760777291065,9.10163069,186.28,186.27,2.83]
[1760777291267,11.88899962,186.28,186.24,7.6109]
[1760777291462,4.92275647,186.27,186.24,7.6109]
[1760777291667,4.92275647,186.26,186.24,7.6109]
[1760777291862,2.79,186.28,186.24,4.8309]
[1760777292070,4.92031005,186.27,186.25,2.78]
[1760777292268,2.79,186.28,186.25,2.78]
[1760777293370,2.79,186.31,186.25,2.78]
[1760777293567,11.87850722,186.3,186.26,2.78]
[1760777293774,4.9158107,186.29,186.26,2.78]
[1760777293972,4.9158107,186.28,186.26,2.78]
[1760777294168,2.79,186.31,186.26,2.78]
[1760777294373,2.79,186.29,186.24,4.8309]
[1760777294570,2.79,186.29,186.22,64.78]
[1760777294571,2.79,186.26,186.22,2.78]
[1760777294872,7.79340013,186.31,186.22,2.78]
[1760777295072,2.79,186.29,186.22,2.78]
[1760777295275,9.08680463,186.28,186.22,2.78]
[1760777295463,4.8296,186.3,186.22,2.78]
[1760777295464,9.08680463,186.27,186.22,2.78]
[1760777295669,4.8296,186.3,186.22,2.78]
[1760777295670,7.70511033,186.26,186.22,2.78]
[1760777295869,2.79,186.26,186.22,2.78]
[1760777296070,2.79,186.29,186.18,2.85484067]
[1760777296370,4.91285341,186.28,186.22,2.78]
[1760777296572,2.79,186.32,186.22,2.78]
[1760777296867,9.08127682,186.31,186.22,2.78]
[1760777297177,4.91197235,186.3,186.22,2.78]
[1760777297374,4.91197235,186.29,186.26,2.78]
[1760777297676,2.79,186.32,186.26,2.78]
[1760777297878,9.07819068,186.31,186.26,2.78]
[1760777298177,4.91029057,186.3,186.28,2.78]
[1760777298377,7.6185,186.34,186.28,2.78]
[1760777298678,2.79,186.32,186.28,2.78]
[1760777298876,4.90770362,186.31,186.28,2.78]
[1760777299076,2.79,186.32,186.28,2.78]
[1760777299478,2.79,186.36,186.28,2.78]
[1760777299674,13.34640709,186.35,186.28,2.78]
[1760777299875,9.07009098,186.34,186.28,2.78]
[1760777300071,2.79,186.36,186.27,2.85484067]
[1760777300072,4.90577998,186.33,186.27,2.85484067]
[1760777300277,4.90577998,186.32,186.27,2.85484067]
[1760777300471,4.27462827,186.35,186.28,2.78]
[1760777300676,2.79,186.36,186.28,2.78]
[1760777300677,9.06654021,186.34,186.28,2.78]
[1760777300868,4.903843,186.33,186.27,2.85484067]
[1760777301072,4.903843,186.32,186.29,7.6095]
[1760777301274,2.79,186.35,186.29,7.6095]
[1760777301575,2.79,186.33,186.29,7.6095]
[1760777301780,2.79,186.33,186.3,2.78]
[1760777301973,4.273139,186.36,186.3,4.8293]
[1760777302169,11.85340757,186.35,186.31,2.78]
[1760777302373,4.90213451,186.34,186.31,2.78]
[1760777302569,4.90213451,186.33,186.31,2.78]
[1760777302770,2.79,186.36,186.31,2.78]
[1760777302978,9.05849384,186.35,186.28,4.8298]
[1760777303174,2.79,186.33,186.28,4.8298]
[1760777303674,2.85484067,186.37,186.28,4.8298]
[1760777303870,2.79,186.35,186.28,4.8298]
[1760777304073,7.67145049,186.34,186.28,4.8298]
[1760777304275,4.88145049,186.33,186.28,4.8298]
[1760777304474,2.79,186.34,186.28,4.8298]
[1760777304672,2.79,186.32,186.28,7.6098]
[1760777304875,4.8286,186.34,186.26,4.8304]
[1760777305078,2.79,186.32,186.26,4.8304]
[1760777309380,2.79,186.32,186.26,9.43486492]
[1760777310379,1.82446492,186.34,186.26,1.82446492]
[1760777310581,2.79,186.35,186.28,4.60446492]
[1760777310782,2.79,186.37,186.32,1.82446492]
[1760777311085,9.03656624,186.36,186.33,2.78]
[1760777311383,4.87934837,186.35,186.33,2.78]
[1760777311581,2.79,186.38,186.32,1.82446492]
[1760777311783,2.79,186.36,186.3,6.65376492]
[1760777312084,7.67003024,186.35,186.3,6.65376492]
[1760777312285,2.79,186.35,186.31,2.78]
[1760777312485,2.79,186.35,186.3,6.65376492]
[1760777312685,2.79,186.35,186.24,62.0]
[1760777312686,2.79,186.43,186.35,2.78]
[1760777312881,2.79,186.43,186.36,1.82446492]
[1760777312882,4.8768506,186.42,186.36,1.82446492]
[1760777313085,2.79,186.43,186.36,1.82446492]
[1760777313282,4.87466265,186.42,186.36,1.82446492]
[1760777313486,2.79,186.43,186.36,1.82446492]
[1760777313786,4.87466193,186.42,186.36,1.82446492]
[1760777313983,2.79,186.43,186.35,7.608]
[1760777314187,2.79,186.41,186.35,6.65246492]
[1760777318383,2.79,186.41,186.33,9.43296492]
[1760777318588,4.86977523,186.4,186.33,9.43296492]
[1760777318784,2.79,186.41,186.33,9.43296492]
[1760777318986,4.86977523,186.4,186.33,9.43296492]
[1760777319187,2.79,186.41,186.33,9.43296492]
[1760777319490,4.86999503,186.4,186.33,9.43296492]
[1760777319790,2.79,186.41,186.33,9.43296492]
[1760777319989,4.86999503,186.4,186.33,9.43296492]
[1760777320287,2.79,186.41,186.33,9.43296492]
[1760777320490,4.87041911,186.4,186.33,9.43296492]
[1760777320679,2.79,186.41,186.33,9.43296492]
[1760777320882,4.87041911,186.4,186.33,9.43296492]
[1760777321080,2.79,186.41,186.33,9.43296492]
[1760777321283,4.87126859,186.4,186.33,9.43296492]
[1760777321480,2.79,186.41,186.33,9.43296492]
[1760777321692,4.87126859,186.4,186.33,9.43296492]
[1760777321986,4.87141053,186.39,186.31,6.65356492]
[1760777322285,22.86261618,186.47,186.3,2.61]
[1760777322286,9.29587545,186.38,186.3,2.61]
[1760777322489,2.6,186.35,186.3,2.61]
[1760777322880,1.82446492,186.36,186.3,2.61]
[1760777322881,4.42446492,186.36,186.3,2.61]
[1760777324189,4.42446492,186.34,186.26,2.61]
[1760777324383,7.47858001,186.33,186.26,4.43446492]
[1760777324592,2.6,186.33,186.26,4.43446492]
[1760777324792,6.86781028,186.38,186.29,2.61]
[1760777324992,10.85263704,186.37,186.3,1.82446492]
[1760777325195,7.47915788,186.36,186.3,1.82446492]
[1760777325387,7.47915788,186.35,186.3,1.82446492]
[1760777325588,4.8277,186.37,186.31,2.61]
[1760777325789,4.87878145,186.36,186.3,4.43446492]
[1760777325991,7.4277,186.37,186.3,4.43446492]
[1760777326193,4.87877973,186.36,186.3,4.43446492]
[1760777326394,7.4277,186.37,186.3,4.43446492]
[1760777326594,4.88076207,186.36,186.3,4.43446492]
[1760777326890,7.4277,186.37,186.3,4.43446492]
[1760777327198,4.88075962,186.36,186.3,9.26376492]
[1760777327391,4.88075962,186.35,186.31,2.61]
[1760777327590,7.4277,186.37,186.31,2.61]
[1760777327790,4.88266026,186.36,186.31,2.61]
[1760777327996,4.88266026,186.35,186.3,6.65376492]
[1760777328196,4.8277,186.37,186.3,9.26376492]
[1760777328396,4.88483793,186.36,186.3,9.26376492]
[1760777328696,4.88483793,186.35,186.31,2.61]
[1760777328996,4.8277,186.37,186.3,9.26376492]
[1760777329192,5.00340013,186.43,186.36,1.82446492]
[1760777329499,2.6,186.47,186.41,4.43446492]
[1760777329690,4.1530653,186.46,186.44,2.61]
[1760777329891,2.6,186.5,186.44,2.61]
[1760777330096,4.15268422,186.49,186.46,2.61]
[1760777330296,2.6,186.5,186.45,1.82446492]
[1760777330500,2.6,186.53,186.47,1.82446492]
[1760777330796,4.14969924,186.52,186.47,1.82446492]
[1760777330992,2.6,186.5,186.42,2.61]
[1760777331192,2.6,186.47,186.43,1.82446492]
[1760777331398,2.6,186.49,186.41,1.82446492]
[1760777331599,2.6,186.47,186.41,1.82446492]
[1760777332495,2.6,186.51,186.45,1.82446492]
[1760777332805,6.74749624,186.5,186.45,4.43446492]
[1760777333093,2.6,186.5,186.45,4.43446492]
[1760777333293,2.6,186.5,186.45,1.82446492]
[1760777333600,9.8066123,186.54,186.47,1.82446492]
[1760777333899,6.74566631,186.53,186.47,1.82446492]
[1760777334198,6.74566631,186.52,186.47,4.43446492]
[1760777334494,4.14566631,186.51,186.47,4.43446492]
[1760777334700,4.14566631,186.5,186.47,4.43446492]
[1760777334903,2.6,186.52,186.47,4.43446492]
[1760777335098,4.14449567,186.51,186.47,4.43446492]
[1760777335398,4.14449567,186.5,186.47,2.61]
[1760777335600,2.6,186.52,186.47,7.435]
[1760777335800,4.8233,186.54,186.44,62.0]
[1760777335801,2.6,186.5,186.44,62.0]
[1760777335998,2.6,186.5,186.4,2.61]
[1760777337100,2.6,186.5,186.42,4.8261]
[1760777338703,4.8245,186.5,186.4,7.4368]
[1760777338905,6.74042526,186.49,186.4,7.4368]
[1760777339099,2.6,186.49,186.4,7.4368]
[1760777340498,2.6,186.49,186.41,4.8264]
[1760777341101,2.6,186.49,186.4,2.61]
[1760777341298,2.6,186.44,186.34,2.61]
[1760777341602,2.6,186.42,186.31,2.61]
[1760777341802,2.6,186.39,186.31,2.61]
[1760777342004,2.6,186.45,186.31,2.61]
[1760777342200,2.6,186.43,186.31,2.61]
[1760777342395,4.84594923,186.42,186.34,7.4382]
[1760777342601,2.6,186.43,186.34,7.4382]
[1760777342800,4.84679459,186.42,186.34,7.4382]
[1760777342999,4.63544637,186.46,186.34,2.61]
[1760777343203,11.59029526,186.45,186.34,2.61]
[1760777343402,2.6,186.43,186.34,2.61]
[1760777343605,4.63544637,186.46,186.34,2.61]
[1760777343606,2.6,186.41,186.34,2.61]
[1760777345007,7.4268,186.41,186.34,2.61]
[1760777347210,2.78,186.39,186.31,7.6591]
[1760777347812,7.6073,186.39,186.31,7.6591]
[1760777352201,2.78,186.39,186.33,2.62]
[1760777352606,4.8266,186.41,186.33,2.62]
[1760777353008,7.6861,186.43,186.35,2.62]
[1760777353208,4.85599374,186.42,186.35,2.62]
[1760777353406,4.8265,186.42,186.35,2.62]
[1760777355207,4.8265,186.42,186.35,7.448]
[1760777355408,2.86,186.43,186.36,1.82258882]
[1760777356212,7.6863,186.43,186.36,1.82258882]
[1760777358415,7.6863,186.43,186.35,7.448]
[1760777358416,2.86,186.41,186.35,4.44258882]
[1760777359610,4.68258882,186.48,186.39,1.82258882]
[1760777359813,4.86139053,186.47,186.41,1.82258882]
[1760777360015,7.72139053,186.46,186.42,2.62]
[1760777360316,2.86,186.46,186.42,2.62]
[1760777360617,2.86,186.47,186.42,2.62]
[1760777360918,2.86,186.45,186.42,2.62]
[1760777362311,7.6849,186.48,186.42,2.62]
[1760777362514,4.85966326,186.47,186.42,2.62]
[1760777362710,2.86,186.45,186.39,4.8269]
[1760777362915,2.86,186.45,186.39,6.64948882]
[1760777363319,2.86,186.45,186.39,1.82258882]
[1760777365115,2.86,186.43,186.35,1.82258882]
[1760777365311,4.81430807,186.42,186.35,1.82258882]
[1760777365510,4.8265,186.42,186.35,1.82258882]
[1760777365712,2.86,186.4,186.33,1.82258882]
[1760777371324,2.86,186.4,186.32,10.29728549]
[1760777374026,2.86,186.4,186.34,2.62]
[1760777374220,4.8268,186.41,186.34,2.62]
[1760777374525,4.81765555,186.4,186.34,2.62]
[1760777374728,4.8268,186.41,186.34,2.62]
[1760777375229,4.8268,186.41,186.34,7.4482]
[1760777377025,7.6861,186.43,186.36,2.62]
[1760777378025,7.6861,186.43,186.36,7.4477]
[1760777378225,4.82155802,186.42,186.36,7.4477]
[1760777378426,7.6861,186.43,186.36,7.4477]
[1760777378626,4.82180169,186.42,186.36,7.4477]
[1760777378922,2.86,186.46,186.38,2.62]
[1760777379132,4.82186999,186.45,186.41,2.62]
[1760777379321,2.86,186.49,186.41,2.62]
[1760777379522,13.2554527,186.48,186.41,2.62]
[1760777379820,2.86,186.49,186.42,7.4461]
[1760777379821,2.86,186.46,186.42,7.4461]
[1760777380017,4.8219035,186.45,186.43,2.62]
[1760777380220,4.8246,186.49,186.43,2.62]
[1760777380424,2.86,186.47,186.43,2.62]
[1760777380623,8.96551591,186.46,186.43,2.62]
[1760777380825,4.82285296,186.45,186.43,2.62]
[1760777381017,2.86,186.47,186.43,2.62]
[1760777381218,8.9653449,186.46,186.44,2.71]
[1760777381428,2.86,186.47,186.44,2.71]
[1760777381623,4.82342253,186.46,186.44,2.71]
[1760777381827,2.59,186.5,186.44,2.71]
[1760777382028,2.59,186.48,186.44,2.71]
[1760777382230,8.96752329,186.47,186.44,2.71]
[1760777382422,2.59,186.48,186.44,2.71]
[1760777382622,8.96566882,186.47,186.44,2.71]
[1760777382823,2.59,186.48,186.44,2.71]
[1760777383027,8.9650447,186.47,186.44,2.71]
[1760777383228,2.59,186.48,186.44,2.71]
[1760777383428,8.96520169,186.47,186.44,2.71]
[1760777383628,2.59,186.48,186.44,2.71]
[1760777383829,8.96441392,186.47,186.44,2.71]
[1760777384029,2.59,186.48,186.44,2.71]
[1760777384229,7.41288722,186.47,186.44,2.71]
[1760777384528,8.96471276,186.46,186.41,4.8265]
[1760777384732,7.4123638,186.45,186.41,7.5365]
[1760777384919,2.59,186.49,186.41,2.71]
[1760777385126,2.59,186.47,186.39,4.827]
[1760777385328,2.59,186.45,186.39,4.827]
[1760777385626,2.59,186.43,186.39,7.537]
[1760777385818,2.59,186.47,186.36,4.8277]
[1760777386021,13.25374869,186.46,186.36,4.8277]
[1760777386218,2.59,186.44,186.36,4.8277]
[1760777386421,8.96334182,186.43,186.36,4.8277]
[1760777386622,2.59,186.41,186.35,2.71]
[1760777387329,2.59,186.41,186.35,7.538]
[1760777389231,2.59,186.41,186.35,4.828]
[1760777389426,4.8262,186.43,186.35,4.828]
[1760777389730,2.59,186.41,186.35,4.828]
[1760777390525,4.82323069,186.4,186.35,4.828]
[1760777390731,2.59,186.39,186.35,7.538]
[1760777391027,2.59,186.39,186.32,2.84848549]
[1760777391028,2.59,186.4,186.33,4.8285]
[1760777392238,2.59,186.4,186.34,4.8282]
[1760777393335,2.59,186.4,186.34,7.5382]
[1760777401847,11.53218223,186.39,186.31,2.71]
[1760777402049,4.14570954,186.38,186.31,2.71]
[1760777402247,2.59,186.39,186.31,2.71]
[1760777402441,4.14534888,186.38,186.31,2.71]
[1760777402642,2.59,186.39,186.31,2.71]
[1760777402842,4.14689282,186.38,186.31,2.71]
[1760777403044,7.4172,186.39,186.32,4.8287]
[1760777403546,8.97389196,186.38,186.32,4.8287]
[1760777403753,4.8275,186.38,186.31,2.71]
[1760777404155,4.8275,186.38,186.31,7.539]
[1760777408849,4.8275,186.38,186.33,2.84848549]
[1760777409056,2.62,186.42,186.37,2.86]
[1760777409355,8.93625056,186.41,186.37,2.86]
[1760777409548,7.4465,186.42,186.36,10.53618549]
[1760777409752,4.7964083,186.41,186.36,7.67618549]
[1760777409954,7.4465,186.42,186.36,7.67618549]
[1760777410150,4.796182,186.41,186.37,2.86]
[1760777410458,7.4465,186.42,186.36,10.53618549]
[1760777410755,4.79623206,186.41,186.36,2.84848549]
[1760777411058,4.8259,186.44,186.37,2.75]
[1760777411253,4.79585417,186.43,186.42,2.75]
[1760777412554,4.79585417,186.43,186.42,5.59848549]
[1760777412754,7.74595823,186.51,186.43,2.75]
[1760777412953,13.13383929,186.5,186.44,4.8256]
[1760777413258,13.13383929,186.5,186.43,2.75]
[1760777413259,2.75,186.48,186.43,2.84848549]
[1760777413460,13.13383929,186.47,186.44,2.75]
[1760777413753,8.9941237,186.46,186.44,2.75]
[1760777413955,4.79547508,186.45,186.43,5.59848549]
[1760777414155,4.79547508,186.44,186.43,5.59848549]
[1760777414456,4.79547508,186.44,186.43,2.75]
[1760777414660,4.79547508,186.44,186.41,5.59848549]
[1760777414953,7.54547508,186.43,186.39,2.84848549]
[1760777415157,4.79547508,186.42,186.39,2.84848549]
[1760777415352,7.5754,186.46,186.4,2.75]
[1760777415553,11.7452664,186.45,186.39,5.59848549]
[1760777415853,2.75,186.43,186.39,2.84848549]
[1760777416062,2.75,186.43,186.4,2.75]
[1760777416256,4.79628928,186.42,186.4,2.75]
[1760777416455,2.75,186.43,186.4,2.75]
[1760777416652,2.75,186.47,186.39,10.42548549]
[1760777416854,8.99311726,186.46,186.42,2.84848549]
[1760777417159,4.79501099,186.45,186.43,2.75]
[1760777417359,4.79501099,186.44,186.43,2.75]
[1760777417560,2.75,186.46,186.43,2.75]
[1760777417763,4.79495978,186.45,186.43,2.75]
[1760777418058,4.8252,186.47,186.39,2.84848549]
[1760777418256,2.75,186.45,186.39,2.84848549]
[1760777418456,2.75,186.43,186.39,2.84848549]
[1760777418857,2.75,186.43,186.39,5.59848549]
[1760777419053,7.5752,186.47,186.39,5.59848549]
[1760777419264,13.12299929,186.46,186.39,5.59848549]
[1760777419460,8.92674832,186.45,186.42,2.84848549]
[1760777419662,4.79269267,186.44,186.43,2.75]
[1760777420760,4.79269267,186.44,186.42,5.59848549]
[1760777420965,2.75,186.48,186.42,5.59848549]
[1760777421161,4.8246,186.49,186.42,5.59848549]
[1760777421162,2.75,186.46,186.42,2.75]
[1760777421371,8.92612554,186.45,186.4,2.84848549]
[1760777421570,2.75,186.43,186.37,2.84848549]
[1760777422164,2.75,186.43,186.4,2.75]
[1760777423369,4.8254,186.46,186.39,4.8269]
[1760777423668,15.85857016,186.45,186.39,4.8269]
[1760777423970,2.75,186.43,186.39,4.8269]
[1760777424166,2.75,186.44,186.37,10.42598549]
[1760777424369,4.78384492,186.43,186.37,10.42598549]
[1760777424566,4.78353323,186.42,186.34,2.84848549]
[1760777424767,7.53353323,186.41,186.34,2.84848549]
[1760777425072,2.75,186.41,186.34,7.67658549]
[1760777425270,4.78380836,186.4,186.34,7.67658549]
[1760777425574,2.75,186.41,186.35,2.75]
[1760777425762,2.75,186.41,186.36,4.8277]
[1760777425967,2.75,186.41,186.38,2.75]
[1760777426370,4.99595823,186.48,186.38,2.75]
[1760777426675,15.85687907,186.47,186.38,2.75]
[1760777426873,13.10687907,186.46,186.38,2.75]
[1760777427073,8.91394029,186.45,186.38,2.75]
[1760777427267,4.78329464,186.44,186.38,2.75]
[1760777427577,2.75,186.47,186.39,4.8269]
[1760777427774,13.10919322,186.46,186.39,4.8269]
[1760777427977,8.91536067,186.45,186.39,4.8269]
[1760777428173,2.75,186.47,186.41,4.8264]
[1760777428471,11.66600453,186.46,186.42,2.75]
[1760777428670,4.78434499,186.45,186.42,2.75]
[1760777428974,2.75,186.48,186.42,2.75]
[1760777429174,4.78478013,186.47,186.41,2.75]
[1760777429371,2.75,186.5,186.41,2.75]
[1760777429671,8.91712635,186.49,186.41,2.75]
[1760777429871,4.7847428,186.48,186.41,2.75]
[1760777430072,2.75,186.5,186.41,2.75]
[1760777430272,8.91408184,186.49,186.41,2.75]
[1760777430475,4.78304185,186.48,186.41,2.75]
[1760777430675,2.75,186.5,186.41,2.75]
[1760777430876,8.91036711,186.49,186.41,2.75]
[1760777431076,7.53105253,186.48,186.44,2.75]
[1760777431273,2.75,186.48,186.44,2.75]
[1760777433380,2.75,186.48,186.44,4.57107869]
[1760777434977,2.75,186.5,186.44,1.82107869]
[1760777435183,4.8241,186.51,186.44,1.82107869]
[1760777435184,2.75,186.48,186.44,1.82107869]
[1760777435483,2.75,186.5,186.44,1.82107869]
[1760777435775,8.90092158,186.49,186.44,1.82107869]
[1760777435972,2.75,186.47,186.44,1.82107869]
[1760777436683,2.75,186.47,186.44,4.57107869]
[1760777439481,2.75,186.47,186.44,9.39677869]
[1760777439887,2.75,186.5,186.44,9.39677869]
[1760777440083,2.75,186.5,186.37,62.0]
[1760777440084,2.75,186.5,186.46,4.57107869]
[1760777440578,2.75,186.52,186.46,1.82107869]
[1760777440783,2.75,186.5,186.44,1.82107869]
[1760777442780,7.5744,186.5,186.44,1.82107869]
[1760777443084,4.76072942,186.49,186.44,1.82107869]
[1760777443285,4.8244,186.5,186.44,1.82107869]
[1760777443286,2.83,186.47,186.44,1.82107869]
[1760777443784,2.83,186.47,186.44,4.53107869]
[1760777444576,2.83,186.48,186.41,1.82107869]
[1760777444777,2.83,186.46,186.39,1.82107869]
[1760777446189,2.83,186.44,186.39,1.82107869]
[1760777446382,2.83,186.43,186.4,1.82107869]
[1760777446588,2.83,186.47,186.4,4.53107869]
[1760777446887,4.76271778,186.46,186.4,4.53107869]
[1760777447086,4.76351967,186.45,186.4,4.53107869]
[1760777447287,2.61,186.45,186.4,4.53107869]
[1760777447888,7.4354,186.46,186.4,4.53107869]
[1760777448089,4.76503275,186.45,186.4,4.53107869]
[1760777448290,4.8254,186.46,186.4,4.53107869]
[1760777448489,2.61,186.44,186.4,4.53107869]
[1760777448690,2.61,186.45,186.39,7.447]
[1760777448889,2.61,186.43,186.39,7.447]
[1760777449485,6.64647869,186.46,186.39,2.62]
[1760777449791,2.61,186.44,186.36,1.82107869]
[1760777449991,2.61,186.42,186.36,1.82107869]
[1760777450691,2.61,186.42,186.38,1.82107869]
[1760777450887,2.61,186.42,186.38,4.44107869]
[1760777451083,4.8256,186.45,186.39,2.62]
[1760777451288,4.76643521,186.44,186.38,4.44107869]
[1760777451487,7.4356,186.45,186.38,4.44107869]
[1760777451787,4.76659146,186.44,186.38,4.44107869]
[1760777451991,7.4356,186.45,186.38,4.44107869]
[1760777452183,7.37659146,186.44,186.4,1.82107869]
[1760777452395,2.61,186.44,186.41,2.62]
[1760777455393,2.61,186.44,186.4,4.44107869]
[1760777456996,2.61,186.44,186.4,1.82107869]
[1760777457195,4.8251,186.47,186.42,1.82107869]
[1760777457396,11.45962435,186.46,186.42,4.44107869]
[1760777457697,2.61,186.44,186.4,2.62]
[1760777457892,2.61,186.46,186.4,2.62]
[1760777458087,2.61,186.44,186.4,2.62]
[1760777458291,4.8254,186.46,186.4,2.62]
[1760777458494,2.61,186.44,186.4,2.62]
[1760777458698,2.61,186.44,186.39,1.82107869]
[1760777458995,2.61,186.44,186.4,2.62]
[1760777459295,2.61,186.45,186.4,2.62]
[1760777459496,7.4354,186.46,186.39,1.82107869]
[1760777459696,11.45979201,186.45,186.39,4.44107869]
[1760777459897,4.74427045,186.44,186.39,4.44107869]
[1760777460196,2.61,186.45,186.39,9.26797869]
[1760777460388,7.35438248,186.44,186.4,2.62]
[1760777460588,2.61,186.44,186.4,2.62]
[1760777461188,2.61,186.44,186.41,1.82107869]
[1760777461992,4.7466138,186.43,186.39,1.82107869]
[1760777462188,2.61,186.42,186.39,4.44107869]
[1760777462995,2.61,186.42,186.37,1.82107869]
[1760777463201,2.61,186.46,186.39,1.82107869]
[1760777463401,2.61,186.46,186.38,2.62]
[1760777463402,2.61,186.44,186.41,1.82107869]
[1760777464303,2.61,186.44,186.41,4.44107869]
[1760777466899,2.67,186.47,186.27,13.35256332]
[1760777467098,4.8276,186.38,186.22,13.35256332]
[1760777467297,2.67,186.32,186.25,4.40107869]
[1760777467497,1.82107869,186.31,186.25,2.58]
[1760777467800,6.65027869,186.31,186.25,2.58]
[1760777468008,1.82107869,186.29,186.25,2.58]
[1760777468303,1.82107869,186.29,186.22,2.58]
[1760777468500,6.55715687,186.38,186.13,9.6674]
[1760777468501,4.15562481,186.35,186.28,1.82107869]
[1760777468704,1.82107869,186.38,186.3,1.82107869]
[1760777468899,2.67,186.39,186.31,1.82107869]
[1760777469102,8.92125498,186.38,186.31,1.82107869]
[1760777469298,2.67,186.37,186.3,9.23027869]
[1760777469498,2.67,186.37,186.3,4.40107869]
[1760777469899,2.67,186.41,186.31,2.58]
[1760777470099,8.91868903,186.4,186.33,1.82107869]
[1760777470301,4.49107869,186.38,186.31,2.58]
[1760777470701,1.82107869,186.36,186.28,1.82107869]
[1760777470905,2.67,186.35,186.28,1.82107869]
[1760777471505,1.82107869,186.34,186.28,1.82107869]
[1760777472501,2.67,186.35,186.28,1.82107869]
[1760777472703,2.67,186.35,186.29,4.8297]
[1760777472905,1.82107869,186.36,186.29,4.8297]
[1760777472906,1.82107869,186.37,186.3,2.65]
[1760777474204,2.82,186.36,186.3,2.65]
[1760777474605,2.82,186.36,186.29,6.65077869]
[1760777474809,2.82,186.34,186.27,4.47107869]
[1760777475111,4.64107869,186.34,186.27,2.65]
[1760777476012,9.46967869,186.34,186.27,2.65]
[1760777476208,9.46967869,186.34,186.25,6.65157869]
[1760777476209,1.82107869,186.32,186.25,6.65157869]
[1760777476408,2.82,186.31,186.25,1.82107869]
[1760777478108,1.82107869,186.31,186.23,4.47107869]
[1760777478408,9.6533,186.41,186.21,62.0]